bitfinex-derivatives/quotes_ETHF0:USTF0_20240928
["timestamp","ask_amount","ask_price","bid_price","bid_amount"]
[1727565824073,7.9442,2671.3,2671.2,3.69801674]
[1727565825967,7.9442,2671.3,2671.2,3.69816984]
[1727565826174,8.31845,2671.3,2671.2,3.69816984]
[1727565826674,7.9442,2671.3,2671.2,3.69816984]
[1727565831878,12.99728,2671.3,2671.2,2.94541984]
[1727565832080,12.99728,2671.3,2671.2,0.98183624]
[1727565832377,7.51893,2671.2,2671.1,0.98183624]
[1727565832576,9.64613,2671.2,2671.1,0.98183624]
[1727565833482,0.37428,2671.1,2671.0,0.98183624]
[1727565833783,7.92328,2671.1,2671.0,0.98183624]
[1727565834579,7.92328,2671.1,2671.0,2.45538396]
[1727565834889,7.92328,2671.1,2671.0,0.98183624]
[1727565836486,0.37429,2671.0,2670.9,0.3842]
[1727565836784,0.37429,2671.0,2670.9,2.83940027]
[1727565837285,0.37429,2671.0,2670.9,2.45520027]
[1727565837479,0.37429,2671.0,2670.9,2.45514644]
[1727565837685,0.37429,2671.0,2670.9,0.98171137]
[1727565838482,0.37429,2671.0,2670.9,1.35602137]
[1727565838784,0.37429,2671.0,2670.9,0.98171137]
[1727565840185,0.37429,2671.0,2670.8,0.37431]
[1727565840186,0.37429,2671.0,2670.8,1.35602137]
[1727565840489,1.7424,2670.9,2670.8,1.35602137]
[1727565840676,1.7424,2670.9,2670.8,1.8474609]
[1727565841084,1.34,2670.9,2670.8,3.31954451]
[1727565841384,1.34,2670.9,2670.8,1.8474709]
[1727565843784,1.34,2670.9,2670.8,3.31961447]
[1727565843978,1.34,2670.9,2670.8,3.31960798]
[1727565848886,1.34,2670.9,2670.8,3.31913961]
[1727565853505,1.71431,2670.9,2670.8,2.45387447]
[1727565853801,2.10421,2670.9,2670.8,0.98119194]
[1727565854187,8.31321,2670.9,2670.8,0.98119194]
[1727565854695,8.31321,2670.9,2670.7,1.76679194]
[1727565854900,0.37432,2670.8,2670.7,1.76679194]
[1727565855203,0.37432,2670.8,2670.7,3.23931331]
[1727565855500,0.3929,2670.8,2670.7,3.23931331]
[1727565855700,0.76722,2670.8,2670.7,3.23931331]
[1727565855902,0.3929,2670.8,2670.7,3.61365331]
[1727565856105,0.3929,2670.8,2670.7,4.10459845]
[1727565856290,0.3929,2670.8,2670.7,2.63246137]
[1727565856497,0.3929,2670.8,2670.7,2.63228211]
[1727565856897,0.3929,2670.8,2670.7,3.73007919]
[1727565857603,0.3929,2670.8,2670.7,2.25794211]
[1727565858110,0.3929,2670.8,2670.7,2.63228211]
[1727565858404,0.3929,2670.8,2670.7,2.63226872]
[1727565858994,0.3929,2670.8,2670.7,3.61331417]
[1727565859402,0.3929,2670.8,2670.7,2.14098545]
[1727565859799,0.3929,2670.8,2670.7,3.61333632]
[1727565862106,7.9389,2670.9,2670.8,0.37432]
[1727565862307,8.31321,2670.9,2670.8,1.35537348]
[1727565865509,8.31321,2670.9,2670.8,0.98105348]
[1727565866396,8.31321,2670.9,2670.8,1.35537348]
[1727565867212,8.31321,2670.9,2670.8,0.98105348]
[1727565867421,8.31321,2670.9,2670.8,1.35537348]
[1727565870902,7.9389,2670.9,2670.8,1.35537348]
[1727565871113,8.31321,2670.9,2670.8,2.82833878]
[1727565871305,8.31321,2670.9,2670.8,1.35537348]
[1727565871912,8.31321,2670.9,2670.8,0.37432]
[1727565872416,8.31321,2670.9,2670.8,1.35537348]
[1727565877424,8.31321,2670.9,2670.8,2.82967112]
[1727565878017,8.31321,2670.9,2670.8,2.82967185]
[1727565878212,8.31321,2670.9,2670.8,1.47429837]
[1727565878522,8.31321,2670.9,2670.8,2.8309777]
[1727565878718,8.31321,2670.9,2670.8,2.4566577]
[1727565879520,8.31321,2670.9,2670.8,0.98235933]
[1727565880421,8.31321,2670.9,2670.8,2.831011]
[1727565880824,8.31321,2670.9,2670.8,2.456691]
[1727565881614,8.31321,2670.9,2670.8,2.831011]
[1727565882025,8.31321,2670.9,2670.8,2.456691]
[1727565883529,8.31321,2670.9,2670.8,2.831011]
[1727565885617,8.31321,2670.9,2670.8,2.456691]
[1727565886124,8.31321,2670.9,2670.8,2.831011]
[1727565886429,8.31321,2670.9,2670.8,2.456691]
[1727565886819,8.31321,2670.9,2670.8,2.831011]
[1727565887820,8.31321,2670.9,2670.8,2.4566456]
[1727565888617,8.31321,2670.9,2670.8,1.84860627]
[1727565889122,8.31321,2670.9,2670.8,1.35668801]
[1727565889325,8.31321,2670.9,2670.8,2.4567544]
[1727565889726,8.31321,2670.9,2670.8,0.98236801]
[1727565891025,9.24898,2670.9,2670.8,0.98236801]
[1727565891227,0.37432,2670.8,2670.7,0.98236801]
[1727565891432,6.95782,2670.8,2670.7,0.98236801]
[1727565896327,9.4248,2670.9,2670.7,2.45668112]
[1727565896531,0.37434,2670.7,2670.6,1.47213708]
[1727565896827,0.37434,2670.7,2670.6,2.94643117]
[1727565898131,0.37434,2670.7,2670.6,3.32078117]
[1727565898322,0.37434,2670.7,2670.6,2.94643117]
[1727565898719,0.37434,2670.7,2670.6,3.32078117]
[1727565899128,0.37434,2670.7,2670.6,2.94643117]
[1727565900327,0.37434,2670.7,2670.6,3.32078117]
[1727565900734,0.37434,2670.7,2670.6,2.94643117]
[1727565900930,3.2078,2670.9,2670.8,0.37432]
[1727565901129,1.34,2670.8,2670.7,0.3975]
[1727565901335,1.7166,2670.8,2670.7,1.87180077]
[1727565902050,1.7166,2670.8,2670.7,2.24613077]
[1727565902330,1.7166,2670.8,2670.7,3.71966409]
[1727565902834,1.7166,2670.8,2670.7,2.24613077]
[1727565903335,1.34,2670.8,2670.7,2.24613077]
[1727565903725,1.34,2670.8,2670.7,3.71970688]
[1727565904625,7.557,2670.8,2670.7,3.71970688]
[1727565908236,7.93132,2670.8,2670.7,3.71970688]
[1727565908634,7.93132,2670.8,2670.7,3.34537688]
[1727565909131,8.30052,2670.8,2670.7,3.34537688]
[1727565909730,9.23633,2670.8,2670.7,2.85432302]
[1727565910130,9.23633,2670.8,2670.7,1.38002225]
[1727565913632,8.30052,2670.8,2670.7,1.38002225]
[1727565915930,8.30052,2670.8,2670.7,2.85453633]
[1727565916639,8.30052,2670.8,2670.7,1.38002225]
[1727565917438,8.30052,2670.8,2670.7,2.85458718]
[1727565918336,8.30052,2670.8,2670.7,2.8545835]
[1727565918540,8.30052,2670.8,2670.7,1.38002225]
[1727565919234,8.30052,2670.8,2670.7,2.85459035]
[1727565919634,8.30052,2670.8,2670.7,2.85458945]
[1727565920437,8.30052,2670.8,2670.7,2.85457991]
[1727565925446,8.30052,2670.8,2670.7,2.85461938]
[1727565927145,7.9262,2670.8,2670.7,3.22895938]
[1727565927346,7.557,2670.8,2670.7,3.72001414]
[1727565928644,7.557,2670.8,2670.7,3.72016812]
[1727565929833,7.557,2670.8,2670.7,3.72012425]
[1727565930251,6.217,2671.2,2670.7,2.24639512]
[1727565930538,3.2078,2671.3,2671.2,0.37426]
[1727565930738,4.92205,2671.3,2671.2,1.47429307]
[1727565930944,4.92205,2671.3,2671.2,3.70352835]
[1727565931334,4.92205,2671.3,2671.2,2.22979307]
[1727565931741,4.92205,2671.3,2671.2,2.60405307]
[1727565932343,1.71425,2671.3,2671.2,3.21143809]
[1727565933137,1.34,2671.3,2671.2,3.58569809]
[1727565933337,1.71425,2671.3,2671.2,1.73714502]
[1727565933547,1.71425,2671.3,2671.2,2.11140502]
[1727565934037,1.34,2671.3,2671.2,2.11140502]
[1727565934239,1.34,2671.3,2671.2,1.12976]
[1727565934845,7.557,2671.3,2671.2,2.11140502]
[1727565935243,7.557,2671.3,2671.2,1.12976]
[1727565935440,7.557,2671.3,2671.2,2.11140502]
[1727565935844,7.557,2671.3,2671.2,1.12976]
[1727565936043,7.557,2671.3,2671.2,2.11140502]
[1727565936540,7.557,2671.3,2671.2,1.12976]
[1727565936946,0.37421,2671.6,2671.5,0.37422]
[1727565937133,1.34,2671.6,2671.5,0.37422]
[1727565937334,6.5912,2671.7,2671.5,0.37422]
[1727565937533,6.5912,2671.7,2671.6,0.37421]
[1727565937534,6.217,2671.7,2671.6,0.37421]
[1727565938335,6.217,2671.7,2671.6,1.15361]
[1727565938943,7.557,2671.7,2671.6,1.15361]
[1727565939540,7.93119,2671.7,2671.6,1.15361]
[1727565940142,7.557,2671.7,2671.6,1.15361]
[1727565940344,1.34,2671.7,2671.6,1.15361]
[1727565942154,1.34,2671.7,2671.6,4.89681]
[1727565951443,0.3685,2672.0,2671.6,4.5226]
[1727565951655,1.7085,2672.0,2671.7,3.2078]
[1727565952053,1.7085,2672.0,2671.9,0.37417]
[1727565959761,2.08265,2672.0,2671.9,0.37417]
[1727565960765,1.7085,2672.0,2671.6,3.9872]
[1727565960965,0.3714,2671.9,2671.7,0.37419]
[1727565961263,0.37419,2671.7,2671.6,3.9872]
[1727565961473,1.34,2671.8,2671.5,0.78181]
[1727565961660,1.34,2671.8,2671.4,0.37423]
[1727565961661,1.7282,2671.6,2671.4,0.37423]
[1727565961856,2.10144,2671.5,2671.3,0.4076]
[1727565962060,2.10144,2671.5,2671.4,0.37424]
[1727565962565,2.10144,2671.5,2671.4,4.11744]
[1727565962768,1.7272,2671.5,2671.2,0.37426]
[1727565963067,1.34,2671.3,2671.2,0.37426]
[1727565965470,1.71424,2671.4,2671.3,0.37425]
[1727565966864,1.34,2671.4,2671.3,0.37425]
[1727565967164,0.3882,2671.6,2671.5,0.37422]
[1727565968962,2.10241,2671.6,2671.5,0.37422]
[1727565969166,1.7282,2671.6,2671.5,0.37422]
[1727565970676,2.10241,2671.6,2671.5,0.37422]
[1727565973464,1.7282,2671.6,2671.5,0.37422]
[1727565975385,1.7282,2671.6,2671.4,1.35587502]
[1727565975680,2.10242,2671.6,2671.4,0.37423]
[1727565976574,0.37424,2671.4,2671.3,4.18944502]
[1727565976872,0.37426,2671.2,2671.0,1.35592502]
[1727565977067,1.7228,2671.1,2671.0,1.35592502]
[1727565978279,2.09708,2671.1,2670.9,0.98164502]
[1727565978673,0.4039,2671.0,2670.9,1.35594502]
[1727565978873,0.4039,2671.0,2670.9,3.2022238]
[1727565979074,0.4039,2671.0,2670.9,2.62767878]
[1727565979275,0.4039,2671.0,2670.9,3.60786209]
[1727565980283,0.4039,2671.0,2670.9,2.13658331]
[1727565984881,6.6209,2671.0,2670.9,2.13658331]
[1727565989493,0.4039,2671.0,2670.9,2.13658331]
[1727565989794,1.34,2671.2,2671.1,0.37428]
[1727565989991,1.7401,2671.2,2671.1,0.37428]
[1727566005190,1.7401,2671.2,2671.1,1.35446331]
[1727566008200,1.7401,2671.2,2671.1,2.82725738]
[1727566008397,1.7401,2671.2,2671.1,1.84707407]
[1727566008900,1.34,2671.2,2671.1,3.32080935]
[1727566009600,1.7242,2671.3,2671.2,0.37426]
[1727566009788,1.7242,2671.3,2671.2,3.31891959]
[1727566011197,0.3842,2671.3,2671.2,3.31891959]
[1727566011597,0.3842,2671.3,2671.2,1.84612552]
[1727566011796,0.3842,2671.3,2671.2,3.31892251]
[1727566016102,0.3842,2671.3,2671.2,1.84705699]
[1727566016403,0.3842,2671.3,2671.2,3.31928828]
[1727566016603,0.3842,2671.3,2671.2,1.84649129]
[1727566016803,0.3842,2671.3,2671.2,3.31963905]
[1727566018305,0.3842,2671.3,2671.2,1.84740776]
[1727566018504,0.3842,2671.3,2671.2,3.31986709]
[1727566018705,0.3842,2671.3,2671.2,3.31986745]
[1727566019202,0.3842,2671.3,2671.2,1.84740776]
[1727566020800,0.3842,2671.3,2671.2,1.84787527]
[1727566022100,0.3842,2671.3,2671.2,3.81065342]
[1727566022304,0.3842,2671.3,2671.2,1.84787527]
[1727566022500,0.3842,2671.3,2671.2,3.81065342]
[1727566023306,0.3842,2671.3,2671.2,1.84787527]
[1727566023709,0.3842,2671.3,2671.2,3.81065342]
[1727566024604,1.7242,2671.3,2671.2,1.84787527]
[1727566025205,1.7242,2671.3,2671.2,1.84808897]
[1727566028027,1.15103,2671.5,2671.3,0.37424]
[1727566028228,1.7482,2671.4,2671.3,2.64570213]
[1727566028524,1.7482,2671.4,2671.3,4.11947001]
[1727566030128,1.7482,2671.4,2671.3,4.11948428]
[1727566035033,1.7482,2671.4,2671.3,4.11957318]
[1727566035234,7.9652,2671.4,2671.3,4.11957318]
[1727566040944,7.93119,2671.8,2671.6,0.37421]
[1727566041143,0.3921,2671.7,2671.6,1.35619446]
[1727566041544,0.3921,2671.7,2671.6,1.75229446]
[1727566041846,1.7321,2671.7,2671.6,1.75229446]
[1727566045146,7.9491,2671.7,2671.6,1.75229446]
[1727566051647,7.9491,2671.7,2671.6,3.22595489]
[1727566051847,7.9491,2671.7,2671.6,1.75229446]
[1727566053151,7.9491,2671.7,2671.6,3.22606811]
[1727566053447,7.9491,2671.7,2671.6,1.75229446]
[1727566054246,3.2078,2671.8,2671.7,0.37419]
[1727566054449,4.5478,2671.8,2671.7,3.32094467]
[1727566054755,4.5478,2671.8,2671.7,3.71333856]
[1727566055052,6.565,2672.1,2671.7,3.71333856]
[1727566055053,0.348,2672.1,2672.0,0.37415]
[1727566055353,4.5478,2672.2,2672.1,0.37414]
[1727566055746,4.5478,2672.2,2672.1,0.77784]
[1727566055945,0.7614,2672.3,2672.2,0.37412]
[1727566056153,7.48939484,2672.5,2672.2,0.37412]
[1727566056154,7.48939484,2672.5,2672.4,0.3741]
[1727566057651,0.7173,2672.8,2672.3,2.32181133]
[1727566057851,0.3693,2672.8,2672.6,0.37406]
[1727566058154,0.3693,2672.8,2672.7,0.76345]
[1727566059251,4.1109,2672.8,2672.3,0.98181133]
[1727566059447,1.34,2672.6,2672.5,0.76347]
[1727566059848,1.34,2672.6,2672.5,0.3894]
[1727566060048,1.34,2672.6,2672.5,0.76348]
[1727566060244,1.7177,2672.6,2672.5,0.76348]
[1727566076167,0.3777,2672.6,2672.5,0.76348]
[1727566079866,0.3693,2672.8,2672.5,0.3894]
[1727566080065,0.74334,2672.8,2672.7,0.37405]
[1727566080869,0.3693,2672.8,2672.7,0.37405]
[1727566081363,0.74334,2672.8,2672.7,0.37405]
[1727566081967,0.74334,2672.8,2672.6,0.74836]
[1727566082168,0.37405,2672.7,2672.6,0.74836]
[1727566082468,1.71405,2672.7,2672.6,0.37406]
[1727566082657,1.34,2672.7,2672.6,0.37406]
[1727566085673,1.71405,2672.7,2672.6,0.37406]
[1727566085975,1.34,2672.7,2672.6,0.37406]
[1727566092976,1.71405,2672.7,2672.6,0.37406]
[1727566093172,1.34,2672.7,2672.6,0.37406]
[1727566100274,1.34,2672.7,2672.6,2.82906571]
[1727566101580,1.34,2672.7,2672.6,3.31997138]
[1727566105979,1.34,2672.7,2672.6,3.32074293]
[1727566106174,1.34,2672.7,2672.6,1.84725438]
[1727566106371,0.74335,2672.8,2672.7,0.37405]
[1727566106691,0.74335,2672.8,2672.7,3.32068828]
[1727566106873,0.3991,2673.0,2672.7,2.94663828]
[1727566107174,0.3806,2672.8,2672.7,1.8474939]
[1727566107483,0.3806,2672.8,2672.7,3.69395004]
[1727566108569,0.3806,2672.8,2672.7,2.22050614]
[1727566108774,6.5976,2672.8,2672.7,3.69395004]
[1727566110073,6.97164,2672.8,2672.7,3.69395004]
[1727566110274,6.97164,2672.8,2672.7,3.69388341]
[1727566111078,6.5976,2672.8,2672.7,3.69388341]
[1727566111984,6.5976,2672.8,2672.7,3.69382462]
[1727566112284,6.5976,2672.8,2672.7,3.31977462]
[1727566113286,6.5976,2672.8,2672.7,1.84633072]
[1727566113682,6.5976,2672.8,2672.7,2.22038072]
[1727566114380,6.5976,2672.8,2672.7,3.69382462]
[1727566114983,6.5976,2672.8,2672.7,3.31977462]
[1727566117076,6.5976,2672.8,2672.7,3.31972708]
[1727566117683,6.97164,2672.8,2672.7,3.31972708]
[1727566120785,6.97164,2672.8,2672.7,0.98220825]
[1727566120786,8.31164,2672.8,2672.7,0.98220825]
[1727566121284,1.30919,2672.7,2672.6,0.98220825]
[1727566121488,7.52625,2672.6,2672.5,0.98220825]
[1727566121698,7.52625,2672.6,2672.4,0.98220825]
[1727566121699,7.93108,2672.6,2672.4,0.98220825]
[1727566121887,2.09088,2672.5,2672.4,0.98220825]
[1727566122486,0.3741,2672.4,2672.3,4.19000825]
[1727566122681,0.3741,2672.4,2672.3,5.66399769]
[1727566122882,0.3741,2672.4,2672.3,4.68178944]
[1727566123390,0.3741,2672.4,2672.3,4.18956848]
[1727566123783,0.3741,2672.4,2672.3,5.66330463]
[1727566123980,0.3741,2672.4,2672.3,0.98176848]
[1727566126584,0.3741,2672.4,2672.2,1.76218848]
[1727566126886,1.71411,2672.3,2672.2,1.38806848]
[1727566127083,1.71411,2672.3,2672.2,0.4063]
[1727566127284,0.37412,2672.2,2672.1,1.37516848]
[1727566127482,1.15652,2672.2,2672.1,1.37516848]
[1727566127792,1.15652,2672.2,2672.1,0.3934]
[1727566128787,0.37414,2672.1,2672.0,1.77666848]
[1727566128990,6.59114,2672.1,2672.0,1.77666848]
[1727566130485,6.59114,2672.1,2672.0,0.7949]
[1727566131188,6.59114,2672.1,2672.0,1.77666848]
[1727566131388,7.93114,2672.1,2672.0,1.16905]
[1727566138890,7.557,2672.1,2672.0,1.16905]
[1727566140699,7.93114,2672.1,2672.0,1.16905]
[1727566144203,1.34,2672.1,2672.0,1.16905]
[1727566144397,0.7824,2672.2,2672.1,0.37414]
[1727566144398,0.3863,2672.2,2672.1,0.37414]
[1727566144598,1.71412,2672.3,2672.2,0.37412]
[1727566149094,7.93112,2672.3,2672.2,0.37412]
[1727566150606,7.93112,2672.3,2672.1,0.37413]
[1727566153795,7.93112,2672.3,2672.0,0.7949]
[1727566153796,0.37412,2672.2,2672.0,0.7949]
[1727566154000,1.71414,2672.1,2672.0,0.4046]
[1727566154302,2.88444,2672.1,2672.0,0.4046]
[1727566156104,2.88444,2672.1,2672.0,0.77875]
[1727566157912,1.7479,2672.1,2672.0,0.77875]
[1727566158707,2.12204,2672.1,2672.0,0.77875]
[1727566159216,0.4079,2672.1,2672.0,0.77875]
[1727566159708,0.4079,2672.1,2672.0,1.76051848]
[1727566163903,0.4079,2672.1,2672.0,3.23292591]
[1727566164212,0.4079,2672.1,2672.0,2.25115743]
[1727566164712,0.4079,2672.1,2672.0,3.72460133]
[1727566164905,0.4079,2672.1,2672.0,2.25115743]
[1727566165297,0.4079,2672.1,2672.0,3.72460133]
[1727566166610,0.4079,2672.1,2672.0,2.25115743]
[1727566167716,0.4079,2672.1,2672.0,4.21393558]
[1727566169819,0.4079,2672.1,2672.0,2.25279774]
[1727566170020,0.4079,2672.1,2672.0,4.21557589]
[1727566170512,0.4079,2672.1,2672.0,2.74152815]
[1727566171614,0.78204,2672.1,2672.0,4.21567902]
[1727566171814,0.4079,2672.1,2672.0,4.21567902]
[1727566172421,0.4079,2672.1,2672.0,2.74152815]
[1727566172919,0.4079,2672.1,2672.0,4.21592558]
[1727566173821,0.4079,2672.1,2672.0,4.2159502]
[1727566175020,0.78204,2672.1,2672.0,4.2159389]
[1727566175816,0.78204,2672.1,2672.0,2.25316075]
[1727566176016,0.78204,2672.1,2672.0,4.2159389]
[1727566177623,0.78204,2672.1,2672.0,2.25316075]
[1727566177819,0.78204,2672.1,2672.0,4.2159389]
[1727566179119,0.78204,2672.1,2672.0,2.25316075]
[1727566179322,0.78204,2672.1,2672.0,4.2159389]
[1727566181829,0.78204,2672.1,2672.0,2.25316075]
[1727566183532,0.78204,2672.1,2672.0,2.25331347]
[1727566185933,0.78204,2672.1,2672.0,4.21609162]
[1727566186233,0.78204,2672.1,2672.0,2.25331347]
[1727566189027,0.78204,2672.1,2672.0,4.21609162]
[1727566189734,0.37414,2672.2,2672.1,0.37412]
[1727566190036,0.37414,2672.2,2672.1,2.22528347]
[1727566190330,0.37414,2672.2,2672.1,3.69882464]
[1727566191029,0.37414,2672.2,2672.1,2.22528347]
[1727566191236,0.37414,2672.2,2672.1,3.69883337]
[1727566193334,0.37414,2672.2,2672.1,3.69892456]
[1727566195030,0.37414,2672.2,2672.1,3.69895081]
[1727566198536,0.37414,2672.2,2672.1,3.6989804]
[1727566204253,0.37414,2672.2,2672.1,2.2254305]
[1727566206544,0.37414,2672.2,2672.1,2.6042305]
[1727566208245,0.37414,2672.2,2672.1,2.60446927]
[1727566211846,0.37414,2672.2,2672.1,2.604491]
[1727566212042,0.37414,2672.2,2672.1,4.07839903]
[1727566217262,3.2078,2672.5,2672.4,1.30935]
[1727566217458,0.77047,2672.6,2672.5,0.37408]
[1727566217658,0.3964,2672.6,2672.5,4.52260831]
[1727566217859,1.7364,2672.6,2672.5,5.01157561]
[1727566218257,2.11047,2672.6,2672.5,4.52145727]
[1727566219261,1.7364,2672.6,2672.5,4.52145727]
[1727566221770,0.3964,2672.6,2672.5,4.52145727]
[1727566221959,0.37405,2672.8,2672.7,0.37405]
[1727566222164,0.75955,2672.8,2672.7,0.37405]
[1727566223366,0.3855,2672.8,2672.7,0.37405]
[1727566226475,3.5558,2673.2,2672.7,1.34]
[1727566226678,0.7502,2673.4,2672.9,2.32102596]
[1727566226970,0.3777,2673.4,2673.3,0.37397]
[1727566231471,1.7177,2673.4,2673.0,0.3789]
[1727566231671,1.714,2673.2,2673.0,0.7554]
[1727566232168,0.3973,2673.1,2673.0,1.12941]
[1727566233776,0.7713,2673.1,2673.0,1.12941]
[1727566235976,0.3973,2673.1,2673.0,1.12941]
[1727566236785,0.7713,2673.1,2673.0,1.12941]
[1727566238387,0.3973,2673.1,2673.0,1.12941]
[1727566239880,3.58176,2673.4,2673.3,0.37397]
[1727566240077,3.95446,2673.4,2673.3,0.37397]
[1727566240279,3.95447,2673.4,2673.2,0.37398]
[1727566240682,0.74667,2673.4,2673.2,0.37398]
[1727566241788,0.74667,2673.4,2673.0,1.69043]
[1727566242084,0.74667,2673.4,2673.3,0.37397]
[1727566242789,0.74667,2673.4,2673.2,0.37398]
[1727566244981,0.74667,2673.4,2673.0,1.69043]
[1727566244982,0.74667,2673.4,2673.3,0.37397]
[1727566245187,0.74667,2673.4,2673.0,1.69043]
[1727566245390,0.74667,2673.4,2673.3,0.37397]
[1727566245690,0.74667,2673.4,2673.2,0.37397]
[1727566246083,0.74667,2673.4,2673.3,0.37397]
[1727566246585,0.74667,2673.4,2673.2,0.37397]
[1727566249093,0.74667,2673.4,2673.0,1.69043]
[1727566249286,2.08667,2673.4,2673.0,1.69043]
[1727566249589,2.08667,2673.4,2673.2,0.37397]
[1727566252588,0.37397,2673.3,2673.2,0.37397]
[1727566253795,1.34,2673.3,2673.0,1.1294]
[1727566253996,2.649,2673.1,2673.0,0.3765]
[1727566254292,0.37401,2673.0,2672.9,3.2078]
[1727566254497,1.16531,2673.0,2672.9,3.2078]
[1727566255493,0.37403,2672.9,2672.8,0.75174]
[1727566255688,0.3964,2672.9,2672.8,3.95954]
[1727566255895,0.77043,2672.9,2672.8,3.95954]
[1727566256392,0.77043,2672.9,2672.8,0.75174]
[1727566256597,0.3964,2672.9,2672.8,0.75174]
[1727566257399,0.77043,2672.9,2672.8,0.75174]
[1727566258497,0.3964,2672.9,2672.8,0.75174]
[1727566260596,0.77043,2672.9,2672.8,0.75174]
[1727566260793,0.3964,2672.9,2672.8,0.75174]
[1727566262095,0.3964,2672.9,2672.8,1.73276596]
[1727566263201,0.3964,2672.9,2672.8,3.20380851]
[1727566263991,7.554,2673.3,2672.9,0.37403]
[1727566264199,0.4043,2673.2,2673.1,0.37398]
[1727566264397,0.77828,2673.2,2673.1,0.75518]
[1727566264703,0.77828,2673.2,2673.1,1.14928]
[1727566265303,0.4043,2673.2,2673.1,1.14928]
[1727566265694,0.77828,2673.2,2673.1,1.14928]
[1727566266798,0.4043,2673.2,2673.1,1.14928]
[1727566267000,3.2078,2673.5,2673.4,0.37396]
[1727566267601,0.4093,2673.6,2673.5,0.37394]
[1727566267900,0.4093,2673.6,2673.5,0.77244]
[1727566268098,0.78323,2673.6,2673.5,0.77244]
[1727566268300,0.4093,2673.6,2673.5,0.77244]
[1727566269409,0.78323,2673.6,2673.5,0.77244]
[1727566270302,0.4093,2673.6,2673.5,0.77244]
[1727566270712,0.78323,2673.6,2673.5,0.77244]
[1727566271207,0.4093,2673.6,2673.5,0.77244]
[1727566271901,0.4093,2673.6,2673.5,1.75227917]
[1727566272403,0.4093,2673.6,2673.5,0.77244]
[1727566273001,0.4093,2673.6,2673.5,1.75227917]
[1727566273201,0.4093,2673.6,2673.5,0.77244]
[1727566273397,0.78323,2673.6,2673.5,0.77244]
[1727566273601,0.78323,2673.6,2673.5,0.3985]
[1727566274404,0.78323,2673.6,2673.5,0.77244]
[1727566275906,0.4093,2673.6,2673.5,0.77244]
[1727566277909,0.78323,2673.6,2673.5,0.77244]
[1727566278101,0.4093,2673.6,2673.5,0.77244]
[1727566278502,0.4093,2673.6,2673.5,0.3985]
[1727566278906,0.4093,2673.6,2673.5,0.77244]
[1727566283708,8.25979148,2673.8,2673.5,0.3985]
[1727566284014,9.98129148,2673.8,2673.7,0.37391]
[1727566284609,6.562,2674.1,2673.6,2.31983917]
[1727566284915,6.562,2674.1,2673.8,0.3739]
[1727566284916,0.75538,2674.0,2673.8,0.3739]
[1727566285118,0.75538,2674.0,2673.9,0.3973]
[1727566285314,0.75538,2674.0,2673.9,0.7728]
[1727566289324,3.2078,2674.2,2674.1,0.37386]
[1727566289514,9.4218,2674.2,2674.1,0.37386]
[1727566292124,9.4218,2674.2,2674.1,5.45306]
[1727566292919,9.4218,2674.2,2674.1,4.11306]
[1727566293229,9.4218,2674.2,2674.1,0.37386]
[1727566295323,6.214,2674.2,2674.1,3.58166]
[1727566296122,6.214,2674.3,2674.1,3.58166]
[1727566296325,6.214,2674.3,2674.2,0.37385]
[1727566296524,6.214,2674.3,2674.2,0.75095]
[1727566297133,6.58783,2674.3,2674.2,0.3771]
[1727566297324,6.214,2674.3,2674.2,0.3771]
[1727566297726,0.75943,2674.4,2674.2,0.75094]
[1727566297939,0.3856,2674.4,2674.3,0.37383]
[1727566298732,0.3856,2674.4,2674.3,0.77523]
[1727566299632,0.3856,2674.4,2674.3,0.4014]
[1727566299933,0.3956,2674.4,2674.3,0.4014]
[1727566300132,0.01,2674.4,2674.3,2.11523]
[1727566300929,0.01,2674.4,2674.3,3.04982]
[1727566301132,0.01,2674.4,2674.3,2.11523]
[1727566301629,0.01,2674.4,2674.3,3.04982]
[1727566302236,0.01,2674.4,2674.3,2.11523]
[1727566310736,0.38382,2674.4,2674.3,0.4014]
[1727566310944,0.38382,2674.4,2674.1,3.58165]
[1727566310945,0.37383,2674.3,2674.1,3.58165]
[1727566311145,1.53213,2674.3,2674.1,3.58165]
[1727566311848,1.1583,2674.3,2674.2,0.37385]
[1727566312234,1.53214,2674.3,2674.2,0.37385]
[1727566313140,0.37385,2674.2,2674.1,3.58165]
[1727566313341,1.1583,2674.3,2674.1,3.58165]
[1727566313548,0.37385,2674.2,2674.1,3.58165]
[1727566313741,1.53213,2674.3,2674.2,0.37385]
[1727566315345,0.37385,2674.2,2674.1,3.58165]
[1727566315648,1.1583,2674.3,2674.2,0.37385]
[1727566315649,1.53214,2674.3,2674.2,0.37385]
[1727566319555,7.74614,2674.3,2674.2,0.37385]
[1727566320452,6.5938,2674.3,2674.2,0.37385]
[1727566321163,6.214,2674.3,2674.2,0.37385]
[1727566322463,0.01,2674.4,2674.3,0.37383]
[1727566322669,0.01,2674.4,2674.3,1.15643]
[1727566323362,0.38382,2674.4,2674.3,1.15643]
[1727566323555,0.78242,2674.4,2674.3,0.37383]
[1727566328660,0.01,2674.4,2674.3,0.37383]
[1727566328860,0.38382,2674.4,2674.3,0.37383]
[1727566329367,0.38382,2674.4,2674.3,1.35366917]
[1727566330072,0.01,2674.4,2674.3,1.35366917]
[1727566330974,0.01,2674.4,2674.3,6.02745917]
[1727566331172,0.01,2674.4,2674.3,7.49931721]
[1727566331466,0.01,2674.4,2674.3,6.56472721]
[1727566331875,0.01,2674.4,2674.3,5.09286917]
[1727566332065,0.01,2674.4,2674.3,7.49932875]
[1727566332663,0.01,2674.4,2674.3,6.56473875]
[1727566332864,0.01,2674.4,2674.3,6.56493509]
[1727566333071,0.01,2674.4,2674.3,1.84589592]
[1727566333576,0.01,2674.4,2674.3,4.25314573]